bitfinex/quotes_ETHUSD_20240722
["timestamp","ask_amount","ask_price","bid_price","bid_amount"]
[1721650331161,2.85911,3497.6,3497.0,2.85953]
[1721650331365,0.06561021,3497.1,3497.0,2.85953]
[1721650331541,2.85911,3497.6,3497.0,2.85953]
[1721650331742,0.06561021,3497.1,3497.0,2.85953]
[1721650331966,2.85911,3497.6,3497.0,2.85953]
[1721650332137,0.06561021,3497.1,3497.0,2.85953]
[1721650332342,3.77054,3497.6,3497.0,2.85953]
[1721650332543,0.06561021,3497.1,3497.0,2.85953]
[1721650332782,2.3381,3497.7,3497.2,2.85934]
[1721650333743,5.19714,3497.7,3497.1,2.85944]
[1721650333957,0.805614,3497.6,3497.1,2.85944]
[1721650334165,5.19714,3497.7,3497.1,2.85944]
[1721650334379,2.3381,3497.7,3497.3,2.85934]
[1721650334565,0.06575729,3497.6,3497.2,2.85942]
[1721650335254,0.06575729,3497.6,3497.4,2.85921]
[1721650337385,0.06575729,3497.6,3497.5,2.85918]
[1721650337759,0.06575729,3497.6,3497.2,2.85938]
[1721650337760,0.06575729,3497.6,3497.4,2.85922]
[1721650339371,0.06575729,3497.6,3497.4,2.8592]
[1721650339683,0.06575729,3497.6,3497.4,5.71841]
[1721650340184,0.06575729,3497.6,3497.4,2.8592]
[1721650340350,0.06575729,3497.6,3497.4,5.7184]
[1721650340718,0.06575729,3497.6,3497.0,1.058]
[1721650340719,0.06575729,3497.6,3497.5,5.71836]
[1721650340885,0.06575729,3497.6,3497.5,6.945996]
[1721650341044,0.44828679,3498.1,3497.7,2.85901]
[1721650341248,0.46583713,3498.0,3497.7,2.85901]
[1721650341447,0.40035014,3497.9,3497.7,2.85901]
[1721650341679,0.06541701,3497.8,3497.7,2.85901]
[1721650342080,0.44828679,3498.1,3497.7,2.85901]
[1721650342294,0.06541701,3497.8,3497.7,2.85901]
[1721650342591,0.44828679,3498.1,3497.7,2.85901]
[1721650342803,0.065345,3497.8,3497.7,2.85901]
[1721650342960,0.44828679,3498.1,3497.7,2.85901]
[1721650343288,0.40049941,3498.0,3497.8,2.85888]
[1721650343504,0.4659378,3498.0,3497.8,2.85888]
[1721650343679,0.06543839,3498.0,3497.8,2.85888]
[1721650344456,0.40047687,3497.9,3497.8,2.85888]
[1721650344657,0.46592182,3497.9,3497.8,2.85888]
[1721650344860,0.06540899,3497.9,3497.8,2.85888]
[1721650345168,0.44828679,3498.1,3497.8,2.85888]
[1721650345478,0.40050352,3498.0,3497.8,2.85888]
[1721650345658,0.46594191,3498.0,3497.8,2.85888]
[1721650345857,0.40050352,3497.9,3497.8,5.71781]
[1721650346061,0.06543839,3498.0,3497.9,5.7177]
[1721650346360,3.47596494,3498.5,3497.9,2.85879]
[1721650346560,0.06544299,3498.0,3497.9,2.85879]
[1721650346785,2.2768,3498.5,3498.0,2.85871]
[1721650347054,0.40054158,3498.4,3498.0,2.85871]
[1721650347261,0.40054158,3498.4,3498.1,2.85869]
[1721650348081,0.40054158,3498.4,3498.1,2.85863]
[1721650348464,2.3129,3498.7,3498.1,2.85863]
[1721650348777,1.18827944,3498.6,3498.3,2.85848]
[1721650348959,0.40062967,3498.5,3498.3,2.85848]
[1721650349496,0.06559018,3498.4,3498.3,2.85848]
[1721650349700,0.46621985,3498.4,3498.3,2.85848]
[1721650352401,0.46621985,3498.4,3498.3,5.71701]
[1721650352688,0.46621985,3498.4,3498.3,6.623371]
[1721650353471,0.46621985,3498.4,3498.3,7.173371]
[1721650355398,0.06559018,3498.4,3498.3,7.173371]
[1721650355783,3.67456494,3499.0,3498.3,7.173371]
[1721650355784,3.67456494,3499.0,3498.5,2.85829]
[1721650356114,0.40081172,3498.9,3498.5,2.85834]
[1721650357781,3.5334,3499.0,3498.5,2.85834]
[1721650357982,0.40078981,3498.9,3498.3,2.85847]
[1721650358223,0.40078981,3498.9,3498.4,2.85842]
[1721650359121,0.40078981,3498.9,3498.5,2.85836]
[1721650360386,0.40078981,3498.9,3498.3,2.85847]
[1721650360387,3.25883981,3498.9,3498.3,2.85847]
[1721650360619,0.40078981,3498.8,3498.3,2.85847]
[1721650360925,0.40078981,3498.8,3498.0,1.058]
[1721650361124,0.40078981,3498.8,3498.3,2.85847]
[1721650361321,0.40075453,3498.7,3498.3,2.85847]
[1721650361500,2.85805,3498.9,3498.3,2.85847]
[1721650361703,0.40075626,3498.8,3498.3,5.71694]
[1721650362112,0.40075626,3498.8,3498.3,5.71693]
[1721650362289,0.40075626,3498.8,3498.4,2.85839]
[1721650362833,0.40075626,3498.8,3498.5,2.85836]
[1721650363035,0.40075626,3498.7,3498.5,2.85836]
[1721650363328,3.5334,3499.0,3498.5,2.85836]
[1721650363490,0.40070915,3498.9,3498.5,2.85836]
[1721650364390,0.06285823,3498.8,3498.5,2.85836]
[1721650364993,2.4754,3499.0,3498.5,2.85836]
[1721650365194,0.40075428,3498.9,3498.5,2.85836]
[1721650365492,0.06285823,3498.8,3498.5,2.85836]
[1721650365691,0.40075428,3498.7,3498.5,2.85836]
[1721650366086,0.06279944,3498.6,3498.5,2.85836]
[1721650366595,5.33336,3499.0,3498.5,2.85836]
[1721650366934,0.40073704,3498.9,3498.5,2.85836]
[1721650367140,0.46362334,3498.9,3498.5,2.85836]
[1721650367342,0.40073704,3498.8,3498.5,2.85836]
[1721650367538,0.40073704,3498.8,3498.6,2.85826]
[1721650367747,0.06282751,3498.7,3498.6,5.71654]
[1721650368050,0.06282751,3498.7,3498.6,5.66654]
[1721650368241,2.4754,3499.0,3498.7,2.85819]
[1721650368416,0.46358678,3498.9,3498.8,2.85809]
[1721650369037,0.46359489,3498.9,3498.8,2.85809]
[1721650369353,0.0628863,3498.9,3498.8,2.85809]
[1721650369502,0.46359484,3498.9,3498.8,2.85809]
[1721650369701,0.0628863,3498.9,3498.8,2.85809]
[1721650370038,2.2882,3499.2,3498.6,2.80826]
[1721650370245,1.7158459,3499.1,3498.6,5.66648]
[1721650370447,0.40080408,3499.0,3498.6,2.80826]
[1721650370748,0.0628863,3498.9,3498.6,2.80826]
[1721650371301,1.25209674,3499.1,3498.6,2.80826]
[1721650371517,0.0628569,3498.8,3498.6,2.80826]
[1721650371741,1.25209674,3499.1,3498.6,2.80826]
[1721650372043,1.1464419,3499.0,3498.6,2.80826]
[1721650372239,0.0628863,3498.9,3498.6,2.80826]
[1721650373447,0.0628863,3498.9,3498.6,2.75826]
[1721650374337,0.0628863,3498.9,3498.6,5.61648]
[1721650374552,0.0628863,3498.9,3498.6,2.75826]
[1721650374756,0.0628863,3498.9,3498.8,2.85812]
[1721650375253,0.0628863,3498.9,3498.6,2.75826]
[1721650375406,0.0628569,3498.8,3498.7,2.85815]
[1721650375606,2.2882,3499.2,3498.7,2.85815]
[1721650375806,0.06294508,3499.1,3498.7,2.85815]
[1721650378026,0.06294508,3499.1,3498.4,1.058]
[1721650378333,0.06294508,3499.1,3498.7,2.85815]
[1721650379108,0.06294508,3499.1,3498.9,2.85803]
[1721650379747,0.06294508,3499.1,3498.6,3.91622]
[1721650379961,0.06294508,3499.1,3498.8,2.85812]
[1721650380348,0.06294508,3499.1,3498.6,1.058]
[1721650380509,0.06294508,3499.1,3498.8,2.85807]
[1721650383335,0.06294508,3499.1,3498.6,6.77444]
[1721650383536,0.06294508,3499.1,3498.7,2.8582]
[1721650385336,1.26211002,3499.1,3498.7,2.8582]
[1721650386038,0.06294508,3499.1,3498.8,2.85805]
[1721650387539,0.06294508,3499.1,3498.8,5.71611]
[1721650387845,0.06294508,3499.1,3498.8,2.85805]
[1721650388527,1.26211002,3499.1,3498.8,2.85805]
[1721650388949,0.06294508,3499.1,3498.8,2.85805]
[1721650389340,1.26211002,3499.1,3498.8,2.85805]
[1721650390267,0.06294508,3499.1,3499.0,3.91595]
[1721650390440,0.06294508,3499.1,3499.0,6.7739]
[1721650390642,1.19916494,3499.4,3499.1,2.85783]
[1721650390843,1.26218782,3499.3,3499.1,2.85783]
[1721650391165,0.06302288,3499.3,3499.1,2.85783]
[1721650391465,1.26218782,3499.3,3499.2,6.77358]
[1721650391666,1.26218782,3499.3,3499.2,10.18137]
[1721650391667,0.06302288,3499.3,3499.2,10.18137]
[1721650391825,0.44811682,3499.8,3499.7,2.85738]
[1721650392030,0.50919181,3499.8,3499.7,2.85738]
[1721650392247,0.06107499,3499.8,3499.7,2.85738]
[1721650392769,3.19916494,3500.0,3499.7,5.71469]
[1721650392977,0.06104911,3499.8,3499.7,5.71469]
[1721650393306,3.19916494,3500.0,3499.8,2.85729]
[1721650393443,3.19916494,3500.0,3499.7,2.85731]
[1721650393444,2.0,3500.0,3499.9,2.85722]
[1721650394444,2.06110786,3500.0,3499.9,2.85722]
[1721650394848,2.06110786,3500.0,3499.9,5.71444]
[1721650395986,2.06110786,3500.0,3499.9,6.919657]
[1721650396271,2.06110786,3500.0,3499.9,12.739677]
[1721650396572,2.0,3500.0,3499.9,12.739677]
[1721650396929,2.06117806,3500.0,3499.9,12.739677]
[1721650400353,2.0,3500.0,3499.9,12.739677]
[1721650403190,2.0,3500.0,3499.9,15.596897]
[1721650403365,2.0,3500.0,3499.9,18.596897]
[1721650404070,1.40407573,3500.0,3499.9,18.596897]
[1721650408484,1.40407573,3500.0,3499.9,15.189677]
[1721650408716,1.40407573,3500.0,3499.9,16.247677]
[1721650409614,1.40407573,3500.0,3499.9,19.104897]
[1721650409795,1.40407573,3500.0,3499.9,19.654897]
[1721650410924,1.40407573,3500.0,3499.9,16.797677]
[1721650411409,1.40407573,3500.0,3499.9,19.654897]
[1721650411611,1.40407573,3500.0,3499.9,16.797677]
[1721650412186,1.40407573,3500.0,3499.9,15.739677]
[1721650412391,1.40407573,3500.0,3499.9,16.797677]
[1721650416266,1.40407573,3500.0,3499.9,19.654897]
[1721650417014,0.46854149,3500.0,3499.9,19.654897]
[1721650417218,2.2834,3501.2,3501.1,2.85624]
[1721650417608,2.34054581,3501.2,3501.1,2.85624]
[1721650422524,2.34054581,3501.2,3500.8,2.85644]
[1721650425382,2.91330581,3501.2,3500.6,2.85658]
[1721650425563,2.4338,3501.1,3500.7,2.85657]
[1721650425763,2.49107329,3501.1,3500.7,2.85657]
[1721650425961,2.3696,3501.0,3500.7,2.85657]
[1721650426191,2.3696,3501.0,3500.4,11.22478]
[1721650426192,2.3696,3500.9,3500.4,10.16677]
[1721650426404,2.42681457,3500.9,3500.4,10.16677]
[1721650426883,2.42681457,3500.9,3500.5,2.85672]
[1721650428818,2.85657,3500.7,3500.0,1.058]
[1721650429036,2.33,3500.6,3500.1,0.55]
[1721650429329,2.33,3500.6,3500.2,2.85692]
[1721650429484,0.05490607,3500.5,3500.2,2.85692]
[1721650430480,0.05490607,3500.5,3500.0,1.058]
[1721650430481,5.27841,3500.4,3499.9,2.8572]
[1721650430681,2.4216,3500.2,3499.7,2.85731]
[1721650430912,0.05519545,3500.1,3499.5,2.85747]
[1721650431129,0.05519545,3500.1,3499.5,2.85751]
[1721650431285,0.05519545,3500.1,3499.7,2.85734]
[1721650431622,0.05519545,3500.1,3499.8,2.8573]
[1721650432229,0.05519545,3500.1,3499.6,3.91541]
[1721650432385,0.05519545,3500.1,3499.7,2.85736]
[1721650432590,0.05519545,3500.1,3499.8,2.85728]
[1721650432928,0.05519545,3500.1,3499.6,2.85741]
[1721650433696,0.05519545,3500.1,3499.5,2.85751]
[1721650433697,0.05519545,3500.1,3499.7,2.85735]
[1721650440849,6.17279,3500.0,3499.4,2.85762]
[1721650441148,2.4174,3499.9,3499.3,2.85765]
[1721650441316,0.05517089,3499.8,3499.4,2.85762]
[1721650441515,0.05517089,3499.8,3499.7,2.85738]
[1721650443353,0.05517089,3499.8,3499.6,2.85746]
[1721650444432,0.05517089,3499.8,3499.7,2.85738]
[1721650447268,0.05517089,3499.8,3499.6,2.85741]
[1721650447762,0.05517089,3499.8,3499.1,7.31]
[1721650447932,0.05517089,3499.8,3499.4,2.85758]
[1721650448131,0.05517089,3499.8,3499.3,2.85764]
[1721650448540,0.05517089,3499.8,3499.5,2.85749]
[1721650448745,0.05517089,3499.8,3499.7,2.85738]
[1721650449556,2.3651,3500.1,3499.7,2.85738]
[1721650449758,0.05521584,3500.0,3499.7,2.85738]
[1721650452661,0.05521584,3500.0,3499.7,2.85732]
[1721650454616,0.05521584,3500.0,3499.8,2.8573]
[1721650455014,0.05521584,3500.0,3499.6,2.85738]
[1721650455175,0.05521584,3500.0,3499.7,2.85738]
[1721650462138,5.16022,3499.9,3499.4,2.85762]
[1721650462299,6.21822,3499.9,3499.4,2.85762]
[1721650462496,0.0551512,3499.8,3499.4,2.85762]
[1721650463094,0.0551512,3499.8,3499.4,2.85758]
[1721650466332,2.85746,3499.6,3499.0,2.85792]
[1721650466655,2.54874603,3499.5,3499.1,3.40785]
[1721650466955,2.54874603,3499.5,3499.1,2.85785]
[1721650467812,2.54874603,3499.5,3499.0,2.85794]
[1721650468864,2.54874603,3499.5,3498.8,3.0]
[1721650469144,2.54874603,3499.5,3497.5,5.87214]
[1721650469145,2.3054,3499.0,3498.2,2.4061]
[1721650469344,2.3054,3499.0,3498.7,2.85817]
[1721650469643,0.05470931,3498.9,3498.7,2.85817]
[1721650470221,0.05470931,3498.9,3498.6,0.55]
[1721650470419,0.05470931,3498.9,3498.4,0.55]
[1721650471106,0.05470931,3498.9,3498.5,2.8583]
[1721650471308,0.05470931,3498.9,3498.6,0.55]
[1721650471940,0.05470931,3498.9,3498.6,3.40827]
[1721650472521,0.05470931,3498.9,3498.2,2.85859]
[1721650472522,1.11270931,3498.9,3498.2,2.85859]
[1721650472724,3.97078931,3498.9,3498.4,2.85843]
[1721650473048,3.97078931,3498.9,3498.2,2.85854]
[1721650473810,3.97078931,3498.9,3498.3,0.55]
[1721650474519,2.85812,3498.8,3498.3,0.55]
[1721650474727,2.4616,3498.7,3498.3,0.55]
[1721650475051,2.5161567,3498.7,3498.3,0.55]
[1721650475225,5.3743567,3498.7,3498.3,0.55]
[1721650476207,3.91641,3498.5,3497.8,2.85891]
[1721650476551,5.15865,3498.4,3497.9,3.0]
[1721650476761,5.21311457,3498.4,3497.9,3.0]
[1721650479149,5.21311457,3498.4,3497.9,5.85884]
[1721650479150,2.35466457,3498.4,3497.9,5.85884]
[1721650482858,2.35466457,3498.4,3498.0,2.85877]
[1721650483060,0.05446457,3498.4,3498.3,2.85853]
[1721650483287,2.284,3498.9,3498.4,2.85843]
[1721650483568,2.284,3498.9,3498.4,2.85841]
[1721650484543,0.05404917,3498.8,3498.4,2.85841]
[1721650488857,0.05404917,3498.8,3498.2,2.85857]
[1721650489278,0.05404917,3498.8,3498.1,0.55]
[1721650489279,2.91218917,3498.8,3498.3,2.85851]
[1721650490358,0.05404917,3498.8,3498.3,2.85847]
[1721650490555,0.05404917,3498.8,3498.4,2.85843]
[1721650496571,0.05404917,3498.8,3498.1,1.608]
[1721650496768,0.05404917,3498.8,3498.7,2.8582]
[1721650497070,2.3,3499.2,3498.8,2.85808]
[1721650497570,2.3,3499.2,3498.8,2.85807]
[1721650497770,2.3,3499.2,3498.9,2.85801]
[1721650498602,2.3153,3499.4,3499.1,2.85781]
[1721650498822,2.3153,3499.7,3499.1,2.85786]
[1721650499020,2.3153,3499.7,3499.3,2.85763]
[1721650499621,0.05423191,3499.6,3499.3,2.85763]
[1721650500534,0.05423191,3499.6,3499.4,2.85757]
[1721650500695,0.05423191,3499.6,3499.5,2.85755]
[1721650501095,0.05423191,3499.6,3498.9,3.916]
[1721650501096,0.05423191,3499.6,3499.4,2.85762]
[1721650503307,0.05423191,3499.6,3499.4,2.85755]
[1721650503506,2.27,3500.0,3499.6,2.85743]
[1721650503720,3.05321371,3500.0,3499.7,2.85737]
[1721650503921,2.27,3500.0,3499.7,2.85737]
[1721650504117,2.27,3500.0,3499.8,2.85729]
[1721650504317,0.44799219,3500.2,3499.9,2.85721]
[1721650504613,2.267,3500.3,3500.0,2.85714]
[1721650505322,2.267,3500.3,3499.9,2.85717]
[1721650505927,2.267,3500.3,3500.0,2.85714]
[1721650506367,2.267,3500.3,3499.9,2.85719]
[1721650507865,2.3966,3500.6,3500.0,5.71418]
[1721650508077,3.91454454,3500.6,3500.1,2.85705]
[1721650508225,2.3966,3500.6,3500.3,2.85685]
[1721650508621,0.44800041,3500.7,3500.6,2.85665]
[1721650508960,1.49467006,3501.4,3500.8,2.85641]
[1721650508961,2.3282,3501.3,3500.8,2.85641]
[1721650509174,0.44790414,3501.2,3500.8,2.85641]
[1721650509378,2.36067955,3501.3,3501.0,2.85631]
[1721650510334,0.03247955,3501.3,3501.1,2.85619]
[1721650511120,0.03247955,3501.3,3500.9,2.8564]
[1721650511328,0.03247955,3501.3,3500.3,2.4274]
[1721650511329,0.9416735,3501.3,3500.5,2.85667]
[1721650511524,1.058,3500.8,3500.0,7.31]
[1721650511776,3.4973,3500.6,3500.0,7.31]
[1721650511924,6.35395,3500.6,3500.0,10.16707]
[1721650512131,3.4973,3500.6,3500.1,2.85705]
[1721650512358,3.4973,3500.6,3500.0,10.16708]
[1721650512552,3.4973,3500.6,3500.1,2.85705]
[1721650513156,3.4973,3500.6,3500.0,7.31]
[1721650513427,3.4973,3500.6,3499.8,2.85728]
[1721650513428,2.85695,3500.3,3499.8,2.85728]
[1721650513667,1.058,3500.4,3499.8,2.85728]
[1721650513668,3.91482,3500.4,3499.8,2.85728]
[1721650514480,0.05352189,3500.3,3499.8,2.85728]
[1721650514638,2.85699,3500.2,3499.6,2.85746]
[1721650514971,0.05349252,3500.2,3499.7,2.85733]
[1721650515172,0.05349252,3500.2,3499.6,2.85741]
[1721650515339,2.85682,3500.4,3499.6,2.85741]
[1721650515531,0.05346316,3500.1,3499.6,2.85741]
[1721650515730,2.85682,3500.4,3499.6,2.85741]
[1721650515934,0.05343379,3500.0,3499.6,2.85741]
[1721650516175,2.85691,3500.3,3499.8,2.85729]
[1721650516346,2.85691,3500.3,3499.6,2.85741]
[1721650516347,0.05340442,3499.9,3499.7,2.85736]
[1721650516549,2.85691,3500.3,3499.7,2.85736]
[1721650516763,0.05337506,3499.8,3499.7,2.85736]
[1721650517068,2.88925955,3500.5,3499.9,2.85722]
[1721650517270,3.81358451,3500.5,3499.9,2.85722]
[1721650517509,0.03247955,3500.5,3500.1,2.85699]
[1721650517778,0.03247955,3500.5,3500.3,2.85685]
[1721650518283,0.03247955,3500.5,3499.9,2.85719]
[1721650518460,0.03247955,3500.5,3500.0,3.40711]
[1721650518887,0.03247955,3500.5,3500.1,2.85704]
[1721650519460,0.03247955,3500.5,3500.0,3.40711]
[1721650520101,2.85682,3500.4,3499.8,2.8573]
[1721650520405,2.85682,3500.4,3499.9,2.8572]
[1721650521164,2.85682,3500.4,3499.7,5.71471]
[1721650521396,2.85682,3500.4,3499.8,2.85729]
[1721650523099,2.85694,3500.3,3499.7,2.85733]
[1721650523801,2.85694,3500.3,3499.7,5.71463]
[1721650523982,2.85694,3500.3,3499.7,2.85731]
[1721650524179,2.85694,3500.3,3499.8,2.8573]
[1721650524381,0.71284251,3500.5,3499.8,2.8573]
[1721650524568,0.71284251,3500.5,3500.1,2.857]
[1721650524768,0.03247955,3500.5,3500.1,2.857]
[1721650525378,0.03247955,3500.5,3499.9,2.85715]
[1721650525583,0.03247955,3500.5,3500.0,2.85709]
[1721650526210,0.03247955,3500.5,3500.2,2.85693]
[1721650526787,0.03247955,3500.5,3500.3,2.85682]
[1721650526993,0.03247955,3500.5,3500.3,3.248302]
[1721650527193,0.03247955,3500.5,3500.4,2.85681]
[1721650529910,0.08615299,3500.5,3500.4,5.77075183]
[1721650530233,0.08615299,3500.5,3500.4,6.26362]
[1721650530234,0.03247955,3500.5,3500.4,6.26362]
[1721650530399,0.03247955,3500.5,3500.4,7.281465]
[1721650534315,0.03247955,3500.5,3500.4,4.424655]
[1721650534629,1.058,3501.1,3500.3,2.85688]
[1721650534630,6.37552,3500.9,3500.3,2.85688]
[1721650534839,1.058,3500.7,3500.0,2.8571]
[1721650535008,1.058,3500.7,3499.6,2.2823]
[1721650535009,2.3433,3500.3,3499.6,2.85744]
[1721650535208,2.3433,3500.3,3499.8,2.85729]
[1721650535414,0.05349778,3500.2,3499.8,2.85729]
[1721650535610,0.05349778,3500.2,3499.9,2.85717]
[1721650535848,2.3433,3500.3,3499.9,5.71432]
[1721650536000,0.05354452,3500.1,3500.0,2.85714]
[1721650536201,2.3064,3500.6,3500.2,2.85691]
[1721650538044,2.85642,3500.9,3500.2,2.85691]
[1721650538602,2.85642,3500.9,3500.2,2.8569]
[1721650539013,2.85642,3500.9,3500.3,2.85687]
[1721650539518,2.85653,3500.8,3500.3,2.85687]
[1721650539720,5.15329959,3500.7,3499.5,2.3967]
[1721650539946,5.15329959,3500.7,3500.0,2.85709]
[1721650539947,2.85672,3500.6,3500.0,2.85709]
[1721650540519,2.29667959,3500.7,3500.1,2.857]
[1721650540718,2.29667959,3500.7,3500.2,2.85696]
[1721650541331,2.29667959,3500.7,3500.3,2.85688]
[1721650542169,2.29667959,3500.7,3500.2,2.85695]
[1721650542454,2.85683,3500.4,3499.7,2.85735]
[1721650542658,2.85683,3500.4,3499.8,2.85727]
[1721650542659,2.85689,3500.4,3499.8,2.85727]
[1721650542857,2.85689,3500.4,3499.6,0.55]
[1721650542858,1.19916494,3500.6,3499.6,3.40745]
[1721650543061,2.3276,3500.2,3499.6,3.40745]
[1721650543261,2.3276,3500.2,3499.6,3.40739]
[1721650543431,5.18461,3500.2,3499.6,2.85739]
[1721650544255,2.85706,3500.1,3499.6,2.85739]
[1721650544564,0.05342593,3500.0,3499.6,2.85739]
[1721650545266,2.85723,3499.9,3499.3,2.85769]
[1721650545470,5.12533,3499.8,3499.1,10.1678]
[1721650545787,5.12533,3499.8,3499.0,2.85789]
[1721650545788,5.17868376,3499.8,3499.2,2.85778]
[1721650546744,6.3778487,3499.8,3499.2,2.85778]
[1721650547073,5.17868376,3499.8,3499.2,2.85778]
[1721650547593,2.32135376,3499.8,3499.3,2.85766]
[1721650548685,5.17866376,3499.8,3499.1,2.85781]
[1721650548902,2.8574,3499.7,3499.2,0.55]
[1721650549064,2.8574,3499.7,3499.1,2.85781]
[1721650549065,2.90865369,3499.7,3499.1,2.85781]
[1721650549270,2.85747,3499.6,3498.7,2.85813]
[1721650549499,2.85765,3499.4,3498.9,2.85804]
[1721650549892,0.05113026,3499.3,3498.9,2.85804]
[1721650550094,2.4509,3499.2,3498.9,2.85804]
[1721650550300,2.50200088,3499.2,3498.9,2.85804]
[1721650550972,2.50200088,3499.2,3498.7,5.71627]
[1721650551175,2.50200088,3499.2,3498.8,0.55]
[1721650551398,2.50200088,3499.2,3498.8,3.40811]
[1721650553120,2.50200088,3499.2,3498.8,0.55]
[1721650553476,2.50200088,3499.2,3498.7,2.8582]
[1721650554412,2.50200088,3499.2,3498.8,2.85805]
[1721650554624,2.50200088,3499.2,3499.0,2.85795]
[1721650554838,0.05110088,3499.2,3499.1,2.85787]
[1721650555178,2.3945,3499.6,3499.1,2.85787]
[1721650555377,0.05100442,3499.2,3499.1,2.85787]
[1721650556014,5.25201,3499.6,3498.9,2.85796]
[1721650556504,5.25201,3499.6,3499.0,2.85794]
[1721650556505,0.05110046,3499.5,3499.0,2.85794]
[1721650559883,2.90866046,3499.5,3499.0,2.85794]
[1721650560087,0.05110046,3499.5,3499.0,2.85794]
[1721650560519,0.05110046,3499.5,3499.0,5.71583]
[1721650560718,0.05110046,3499.5,3499.0,2.85789]
[1721650561283,0.05110046,3499.5,3499.4,2.85763]
[1721650561484,2.4652,3500.0,3499.5,2.85754]
[1721650561734,2.4652,3500.0,3499.4,2.85762]
[1721650561735,0.05110046,3499.5,3499.4,2.85762]
[1721650561916,5.32234,3500.0,3499.4,2.85762]
[1721650562112,0.05110502,3499.5,3499.4,2.85762]
[1721650562311,5.32234,3500.0,3499.5,2.85754]
[1721650562312,2.4652,3500.0,3499.5,2.85754]
[1721650562893,2.4652,3500.0,3499.4,2.85762]
[1721650563095,5.32234,3500.0,3499.4,2.85762]
[1721650563399,2.4652,3500.0,3499.5,2.85749]
[1721650564891,2.2778,3500.3,3499.3,2.85765]
[1721650565093,2.2778,3500.3,3499.9,2.85715]
[1721650566995,2.2778,3500.3,3499.7,2.85735]
[1721650567212,5.1347,3500.3,3499.7,2.85735]
[1721650567516,2.2778,3500.3,3499.7,2.85733]
[1721650567929,5.13471,3500.3,3499.7,2.85733]
[1721650568121,6.20651073,3500.3,3499.7,2.85733]
[1721650568523,2.85698,3500.2,3499.6,2.85746]
[1721650568845,2.2879,3500.0,3499.3,2.85765]
[1721650569156,5.14506,3500.0,3499.4,2.85758]
[1721650569490,5.14506,3500.0,3499.3,2.85765]
[1721650569491,2.85736,3499.8,3498.9,2.858]
[1721650569695,2.88985385,3499.8,3498.4,5.2085]
[1721650569933,2.85745,3499.7,3499.1,2.85785]
[1721650570157,3.3055131,3499.7,3499.1,2.85785]
[1721650570333,0.4480631,3499.7,3499.2,2.85774]
[1721650570541,0.4480631,3499.7,3499.1,5.71566]
[1721650570723,2.88985385,3499.8,3499.1,2.85782]
[1721650570908,3.92712912,3499.8,3499.1,2.85782]
[1721650571313,3.92712912,3499.8,3498.9,2.85799]
[1721650571910,2.85743,3499.7,3499.1,2.85784]
[1721650572950,2.85748,3499.6,3499.1,2.85784]
[1721650574593,0.04945122,3499.5,3499.1,2.85784]
[1721650575481,0.04945122,3499.5,3498.9,2.85796]
[1721650575680,0.04945122,3499.5,3499.0,2.8579]
[1721650575882,0.04945122,3499.5,3499.1,2.85786]
[1721650576187,3.92712912,3499.8,3498.9,2.85796]
[1721650576398,0.04941659,3499.4,3499.1,2.85785]
[1721650576695,0.0493872,3499.3,3499.1,2.85785]
[1721650577196,0.04935782,3499.2,3499.1,2.85785]
[1721650577550,2.85744,3499.7,3499.1,2.85785]
[1721650577760,0.04935782,3499.2,3499.1,2.85785]
[1721650577960,2.85744,3499.7,3499.1,2.85785]
[1721650578192,0.0476779,3499.2,3499.1,2.85785]
[1721650578343,2.85744,3499.7,3499.1,2.85785]
[1721650578544,0.0476779,3499.2,3499.1,2.85785]
[1721650578859,2.85744,3499.7,3499.1,5.71566]
[1721650579086,2.85744,3499.7,3499.1,2.85781]
[1721650579404,0.04779543,3499.6,3499.1,2.85781]
[1721650581606,2.90526543,3499.6,3498.9,2.858]
[1721650581778,2.90526543,3499.6,3499.0,2.85793]
[1721650582921,2.90526543,3499.6,3499.1,2.85785]
[1721650583719,0.04779543,3499.6,3499.2,2.85774]
[1721650584079,0.03251385,3499.8,3499.5,2.8575]
[1721650587031,0.03251385,3499.8,3499.5,2.85748]
[1721650588435,1.23167879,3499.8,3499.5,2.85748]
[1721650589018,1.23167879,3499.8,3499.4,2.85759]
[1721650589221,0.03251385,3499.8,3499.4,2.85759]
[1721650589436,0.04773233,3499.7,3499.4,2.85759]
[1721650589843,0.03251385,3499.8,3499.4,2.85759]
[1721650590150,0.03251385,3499.8,3499.5,2.85755]
[1721650590344,1.23167879,3499.8,3499.5,2.85755]
[1721650590530,0.04773233,3499.7,3499.5,2.85755]
[1721650590847,1.23167879,3499.8,3499.6,2.85746]
[1721650591048,0.03251385,3499.8,3499.6,2.85746]
[1721650591255,1.23167879,3499.8,3499.6,2.85746]
[1721650592368,1.23167879,3499.8,3499.6,5.71487]
[1721650592531,0.03251385,3499.8,3499.6,2.85741]
[1721650594268,0.03251385,3499.8,3499.7,5.71476]
[1721650594469,1.19916494,3500.3,3500.2,2.85697]
[1721650594621,1.19916494,3500.4,3500.3,2.85689]
[1721650595263,1.19916494,3500.4,3500.1,2.85699]
[1721650595460,3.49406494,3500.6,3500.3,2.85689]
[1721650595756,1.19916494,3500.6,3500.5,2.85673]
[1721650595956,1.19916494,3500.7,3500.5,2.85673]
[1721650597368,1.19916494,3500.8,3500.5,2.85673]
[1721650599917,1.19916494,3500.7,3500.5,2.85673]
[1721650600220,1.19916494,3500.8,3500.5,2.85673]
[1721650600369,1.19916494,3500.8,3500.6,2.85664]
[1721650600964,1.19916494,3500.8,3500.4,2.85675]
[1721650601165,1.19916494,3500.8,3500.5,2.85672]
[1721650603593,1.19916494,3500.8,3500.5,5.7134]
[1721650604003,1.19916494,3500.8,3500.5,2.85668]
[1721650604429,0.04798778,3500.7,3500.5,2.85668]
[1721650604799,1.19916494,3500.8,3500.5,5.71334]
[1721650604995,0.04803108,3500.7,3500.5,2.85666]
[1721650605222,1.19916494,3500.8,3500.7,2.85657]